Cogmind - Beta 15 @@@ ROGUE MODE // 2025.09.12 @ 00:07:55 Player: Peregrine Result: Destroyed by X-62 Marksman with Pulse Rifle Performance ------------- Evolutions (2) 1000 Regions Visited (7) 1400 Robots Destroyed (90) 450 Value Destroyed (2908) 2908 Prototype IDs (30) 600 Alien Tech Used (0) 0 Bonus (1186) 1186 TOTAL SCORE: 7544 Bonus ------- High Alert Combat Kills 543 Follower Combat Kills 143 Entered Garrisons 200 Aligned with FarCom 300 Cogmind --------- Core Integrity 0/550 Matter 285/300 Energy 81/100 System Corruption 0% Temperature Cool (9) Movement Core (150) Ox2 Location -8/Materials Parts ------- > --- POWER (1) -------- (None) > --- PROPULSION (2) --- (None) > --- UTILITY (6) ------ Advanced Targeting Computer Advanced Targeting Computer Melee Analysis Suite Core Analyzer > --- WEAPON (2) ------- Advanced Beam Cannon Longsword +1 > --- INVENTORY (5) ---- Improved Heat Sink Proton Cannon Rocket Launcher Greatsword Peak State ------------ > --- POWER ------------ Reinforced Ion Engine > --- PROPULSION ------- Carbon-fiber Leg Carbon-fiber Leg > --- UTILITY ---------- Huge Storage Unit Melee Analysis Suite Core Analyzer Core Analyzer Improved Actuator Array Improved Reaction Control System > --- WEAPON ----------- Power Sword Longsword +1 > --- INVENTORY -------- Improved Ion Engine Nuclear Core Aluminum Leg Carbon-fiber Leg Carbon-fiber Leg Carbon-fiber Leg Improved Heat Sink Improved Heat Sink Humpback Medium Battery Medium Matter Pod Medium Matter Pod Energy Filter Energy Filter Light Armor Plating Hacking Suite Proton Cannon Advanced Assault Cannon Advanced Assault Cannon Rocket Launcher Greatsword [Rating: 49] Favorites ----------- Power Light Ion Engine Engine Light Ion Engine Power Core Nuclear Core Propulsion Wheel Treads Light Treads Leg Carbon-fiber Leg Wheel Wheel Hover Unit Improved Hover Unit Utility Core Analyzer Device Reaction Control System Storage High-capacity Storage Unit Processor Core Analyzer Protection Layered Light Armor Plating Weapon Arc Projector Energy Gun Arc Projector Energy Cannon Proton Cannon Ballistic Gun Enhanced Autogun Ballistic Cannon Advanced Assault Cannon Launcher Rocket Launcher Slashing Weapon Longsword +1 Build | -11 -10 -10 -10 -9 -8 -8 -8 ------- Run | Yrd Mat Min Exi Min Mat Gar Mat Slots Evolved 4 | . . . . . 4 . . Power . | . . . . . . . . Propulsion . | . . . . . . . . Utility 4 | . . . . . 4 . . Weapon . | . . . . . . . . Parts Attached 57 | . 5 . 1 10 6 21 14 Power 7 | . . . 1 1 . 3 2 Engine 6 | . . . 1 1 . 3 1 Core 1 | . . . . . . . 1 Reactor . | . . . . . . . . Propulsion 12 | . 2 . . 1 . 5 4 Treads 2 | . . . . . . 2 . Leg 6 | . . . . . . 3 3 Wheel 3 | . 2 . . 1 . . . Hover 1 | . . . . . . . 1 Flight . | . . . . . . . . Utility 21 | . 2 . . 3 4 8 4 Device 5 | . . . . . 1 4 . Storage 4 | . 1 . . . 1 1 1 Processor 8 | . . . . 1 2 2 3 Hackware . | . . . . . . . . Protection 4 | . 1 . . 2 . 1 . Artifact . | . . . . . . . . Weapon 17 | . 1 . . 5 2 5 4 Energy Gun 6 | . 1 . . 2 1 2 . Energy Cannon 2 | . . . . . . . 2 Ballistic Gun 3 | . . . . 1 1 . 1 Ballistic Cannon 2 | . . . . . . 2 . Launcher 1 | . . . . 1 . . . Special Weapon . | . . . . . . . . Impact Weapon . | . . . . . . . . Slashing Weapon 3 | . . . . 1 . 1 1 Piercing Weapon . | . . . . . . . . Special Melee Weapon . | . . . . . . . . Unidentified Prototypes 1 | . . . . . 1 . . Parts Lost 21 | . . . . 3 . 5 13 Power 4 | . . . . . . 2 2 Propulsion 7 | . . . . 1 . 2 4 Utility 6 | . . . . 1 . 1 4 Weapon 4 | . . . . 1 . . 3 Highest Loss Streak 7 | . . . . 3 . 1 7 To Critical Strikes 1 | . . . . . . . 1 Average Backups 15 | 6 10 14 15 15 16 16 15 Power . | 1 1 2 1 1 1 . 1 Propulsion 4 | 4 4 6 6 5 5 4 1 Utility 4 | . 2 4 3 4 3 4 7 Weapon 5 | 1 1 2 4 5 6 6 4 Tool/Special . | . . . . . . . . Unused Backups 21 | . 1 . 4 . . 8 8 Power 4 | . . . 2 . . 1 1 Propulsion 2 | . . . . . . 1 1 Utility 9 | . 1 . 2 . . 1 5 Weapon 6 | . . . . . . 5 1 Tool/Special . | . . . . . . . . Average Slot Usage (%) 92 | . 98 100 76 98 88 92 93 Engine 9 | . 14 14 14 14 9 7 7 Treads 4 | . . . . . . 9 . Leg 6 | . 5 . . . . 6 17 Wheel 9 | . 22 28 28 27 18 2 . Device 7 | . . . . . 6 8 17 Storage 11 | . 14 14 14 14 9 10 7 Processor 16 | . . . . 3 17 21 23 Protection 8 | . 13 14 14 9 11 8 . Energy Gun 11 | . 27 28 4 13 9 10 . Ballistic Gun 2 | . . . . 6 8 1 . Ballistic Cannon 2 | . . . . . . 3 9 Slashing Weapon 2 | . . . . 5 . 1 5 Peak Build Rating 49 | 6 8 8 11 26 30 43 49 Average Rating 27 | 6 7 8 6 17 28 32 42 On Entrance 15 | 6 6 8 8 7 19 29 43 Naked Turns . | . . . . . . . . Heaviest Build 231 | 12 50 50 50 68 231 227 108 Greatest Support 40 | 20 20 20 20 20 20 40 30 Greatest Overweight (x) 11 | . 2 2 2 3 11 11 3 Average Overweight (x) 2 | . 1 2 2 2 10 2 1 Largest Inventory Capacity 35 | 8 20 20 20 20 35 35 25 Average Capacity 21 | 8 17 20 20 20 34 21 19 Most Carried 24 | 6 14 14 20 19 22 21 24 Average Carried 16 | 6 10 14 15 17 17 17 17 Final Capacity 35 | 8 20 20 20 20 35 20 5 Final Carried 20 | 6 14 14 18 19 20 17 5 Class Distribution -------------------- 68% | Mutant 14% | Hauler-Mutant 12% | Commander-Mutant 3% | Gladiator Dominant Class ---------------- Mutant | -10/Materials Mutant | -10/Mines Mutant | -10/Exiles Mutant | -9/Mines Hauler-Mutant | -8/Materials Mutant | -8/Garrison Mutant | -8/Materials Resources | -11 -10 -10 -10 -9 -8 -8 -8 ----------- Run | Yrd Mat Min Exi Min Mat Gar Mat Matter Collected 1717 | 200 80 . . 166 84 786 401 Remotely . | . . . . . . . . Salvage Created 2404 | . 431 69 . 256 134 985 529 Parts 170 | . 32 5 . 12 12 64 45 Haulers Intercepted 2 | . 1 . . . . . 1 Recyclers Shooed 4 | . 4 . . . . . . Parts Field Recycled . | . . . . . . . . Retrieved Matter . | . . . . . . . . Parts Self-Destructed . | . . . . . . . . Prevented . | . . . . . . . . Kills | -11 -10 -10 -10 -9 -8 -8 -8 ------- Run | Yrd Mat Min Exi Min Mat Gar Mat Combat Hostiles Destroyed 76 | . 6 3 . 12 5 34 16 Melee 9 | . . . . . . 3 6 Guns 32 | . 6 3 . 6 5 11 1 Cannons 10 | . . . . . . 1 9 AOE 25 | . . . . 6 . 19 . Classes Destroyed 14 | . 7 1 . 3 1 1 1 Worker 1 | . 1 . . . . . . Builder 5 | . 3 . . . . . 2 Tunneler 2 | . . 1 . . . . 1 Hauler 2 | . 1 . . . . . 1 Recycler 2 | . 1 . . 1 . . . Watcher 5 | . 3 . . . . 1 1 Swarmer 34 | . 3 3 . 3 3 15 7 Grunt 23 | . 3 . . 4 . 12 4 Brawler 1 | . . . . 1 . . . Duelist 3 | . . . . . . 2 1 Sentry 10 | . . . . . 2 5 3 Demolisher 1 | . . . . 1 . . . Specialist 1 | . . . . . . . 1 Assembled 3 | . . . . 3 . . . Best Kill Streak 11 | . 3 2 . 7 3 11 6 Combat Bots Only 11 | . 3 2 . 7 3 11 3 Max Kills in Single Turn 3 | . 1 1 . 3 1 3 1 Gunslinging . | . . . . . . . . Exploded 3 | . . . . 3 . 3 . Melee 1 | . . . . . . 1 1 Uniques/NPCs Destroyed . | . . . . . . . . Combat | -11 -10 -10 -10 -9 -8 -8 -8 -------- Run | Yrd Mat Min Exi Min Mat Gar Mat Hostile Shots Fired 347 | . 27 7 . 35 15 102 161 Missed 103 | . 6 1 . 11 1 28 56 Hits 244 | . 21 6 . 24 14 74 105 Melee 2 | . . . . . . 1 1 Projectile 242 | . 21 6 . 24 14 73 104 AOE 3 | . . . . 2 . . 1 Critical Strikes 10 | . 1 . . . . 4 5 Damage Taken 3761 | . 224 48 . 303 130 1168 1888 Core 670 | . 50 . . 63 6 171 380 Absorbed by Shields 17 | . . . . . . 17 . Core Remaining (%) 77 | 100 . . . 54 . . . Volleys Fired 194 | . 38 7 . 26 17 76 30 Largest 2 | . 2 2 . 2 2 2 2 Hottest 135 | . 100 100 . 113 105 135 115 Shots Fired 345 | . 76 14 . 44 30 123 58 Gun 256 | . 76 14 . 39 30 89 8 Cannon 61 | . . . . . . 11 50 Launcher 28 | . . . . 5 . 23 . Special . | . . . . . . . . Kinetic 88 | . . . . 9 17 16 46 Thermal 143 | . 76 14 . 30 13 10 . Explosive 28 | . . . . 5 . 23 . Electromagnetic 86 | . . . . . . 74 12 Robot Hit Streak 16 | . 11 8 . 5 5 16 10 Robot Miss Streak 5 | . 3 2 . 2 5 2 5 Penetration Max . | . . . . . . . . Secondary Targets 2 | . 1 . . 1 . . . Max Gunslinging Chain 1 | . 1 . . 1 . . . Shots Hit Robots 223 | . 54 9 . 32 13 65 50 Core Hits 143 | . 23 4 . 21 7 61 27 Critical Kills . | . . . . . . . . Critical Parts Destroyed . | . . . . . . . . Critical Strikes 9 | . 4 . . 1 . 1 3 Burn 5 | . 4 . . 1 . . . Blast 3 | . . . . . . . 3 Sever 1 | . . . . . . 1 . Melee Attacks 43 | . . . . 1 . 22 20 Impact . | . . . . . . . . Slashing 43 | . . . . 1 . 22 20 Piercing . | . . . . . . . . Sneak Attacks 3 | . . . . 1 . . 2 Combat Hostiles . | . . . . . . . . Follow-up Attacks 6 | . . . . . . 2 4 Damage Inflicted 6289 | . 685 120 . 813 247 2748 1676 Guns 2197 | . 685 115 . 355 247 698 97 Cannons 1143 | . . . . . . 127 1016 Explosions 2061 | . . . . 363 . 1698 . Melee 875 | . . . . 95 . 225 555 Ramming 13 | . . 5 . . . . 8 Kinetic 1145 | . . . . 42 80 163 860 Thermal 1713 | . 685 115 . 313 167 433 . Explosive 1873 | . . . . 363 . 1510 . Electromagnetic 670 | . . . . . . 417 253 Impact . | . . . . . . . . Slashing 875 | . . . . 95 . 225 555 Piercing . | . . . . . . . . Highest Corruption 1 | . 1 1 1 1 . . . Average Corruption 1 | . 1 1 1 1 . . . Corruption Purged . | . . . . . . . . Corruption Blocked . | . . . . . . . . Effects 4 | . . 1 1 2 . . . Message Errors 1 | . . 1 . . . . . Matter Fused 1 | . . . . 1 . . . Heat Flow Errors 1 | . . . . 1 . . . Energy Discharges 1 | . . . 1 . . . . Overload Shots . | . . . . . . . . Overflow Damage 172 | . . . . 73 . 36 63 Projectiles . | . . . . . . . . Explosions 54 | . . . . 18 . 36 . Melee 118 | . . . . 55 . . 63 Knockbacks 5 | . . . . . . . 5 Impact . | . . . . . . . . Kinetic 4 | . . . . . . . 4 Secondary 1 | . . . . . . . 1 Self-Inflicted Damage 147 | . . 2 . . . 145 . Shots 5 | . . . . . . 5 . Rammed 1 | . . 1 . . . . . Targets Rammed 3 | . . 1 . . . . 2 Kicked 2 | . . . . . . . 2 Crushed . | . . . . . . . . Highest Temperature 450 | . 450 144 . 393 281 386 132 Average Temperature 100 | . 123 61 . 129 94 93 48 Received Heat Transfer 834 | . 54 . . 36 18 465 261 Effects 6 | . 2 . . 2 . 2 . Shutdowns 2 | . 1 . . . . 1 . Energy Bleed 1 | . . . . 1 . . . Matter Decay 2 | . 1 . . 1 . . . Damage (minor) 1 | . . . . . . 1 . Siege Activations . | . . . . . . . . Martial Activations . | . . . . . . . . Shielding Activations . | . . . . . . . . Robots Disrupted 1 | . . . . . . 1 . Combat Hostiles 1 | . . . . . . 1 . Robots Corrupted . | . . . . . . . . Combat Hostiles . | . . . . . . . . Parts Fried 3 | . . . . . . 2 1 Impact Corruptions . | . . . . . . . . Robots Melted . | . . . . . . . . Combat Hostiles . | . . . . . . . . Parts Melted 8 | . 4 1 . 2 . 1 . Heat Transferred 4695 | . 2331 333 . 857 374 800 . Parts Sabotaged . | . . . . . . . . Parts Stolen . | . . . . . . . . Parts Stripped . | . . . . . . . . Power Chain Reactions 3 | . . . . . . 3 . Alert | -11 -10 -10 -10 -9 -8 -8 -8 ------- Run | Yrd Mat Min Exi Min Mat Gar Mat Maximum Alert Level 5 | . . . . . . 5 4 Low Security (%) 44 | 100 100 100 . 100 100 24 . Level 1 1 | . . . . . . 3 . Level 2 5 | . . . . . . 9 . Level 3 28 | . . . . . . 27 97 Level 4 8 | . . . . . . 14 2 Level 5 11 | . . . . . . 20 . High Security . | . . . . . . . . Max Security . | . . . . . . . . Peak Influence 2274 | . 80 83 . 137 96 2274 1108 Initial 1108 | . . 17 . . 46 9 1108 Average 675 | . 28 32 . 22 35 945 1023 Influence Increases 3608 | . 220 98 . 275 171 2335 509 Destroy 0b10 Robot/C 1560 | . 120 60 . 180 100 780 320 Destroy 0b10 Robot/NC 85 | . 45 5 . 5 . 5 25 Destroy Leader 192 | . 28 10 . 30 30 20 74 Allied During Kill 56 | . . 8 . . . 43 5 Successful Hack 37 | . 12 . . . 25 . . Disable Machine 75 | . . . . 30 . 45 . Anti-Garrison Action 1250 | . . . . . . 1250 . Destroy Structure 188 | . . . . 15 1 162 10 Lose Combat Pursuer 165 | . 15 15 . 15 15 30 75 Influence Decreases 2563 | . 175 100 43 154 278 75 1738 Entered New Map 1317 | . . 28 43 . 75 5 1166 Time Decay 916 | . 175 72 . 124 203 . 342 Lost Part 210 | . . . . 30 . 50 130 Lost Ally 120 | . . . . . . 20 100 Squads Dispatched 7 | . 1 . . 1 1 . 4 Investigation 2 | . 1 . . 1 . . . Extermination . | . . . . . . . . Reinforcement 4 | . . . . . 1 . 3 Assault 1 | . . . . . . . 1 Garrison . | . . . . . . . . Intercept . | . . . . . . . . Searches Triggered . | . . . . . . . . Construction Impeded . | . . . . . . . . Haulers Reinforced . | . . . . . . . . Active Scanning Responses . | . . . . . . . . Cargo Convoy Interrupts . | . . . . . . . . Stealth | -11 -10 -10 -10 -9 -8 -8 -8 --------- Run | Yrd Mat Min Exi Min Mat Gar Mat Distress Signals 8 | . . . . . 3 1 4 Communications Jammed . | . . . . . . . . Distress Signals . | . . . . . . . . Times Spotted 113 | . 11 4 . 18 9 40 31 Peak Tracking Total 11 | . 3 2 . 11 5 6 6 Tactical Retreats 10 | . 1 1 . 1 1 2 4 Traps | -11 -10 -10 -10 -9 -8 -8 -8 ------- Run | Yrd Mat Min Exi Min Mat Gar Mat Traps Triggered 12 | . 1 . . . . 10 1 Indirectly . | . . . . . . . . Trap Hack Attempts . | . . . . . . . . Triggered . | . . . . . . . . Disarmed . | . . . . . . . . Reprogrammed . | . . . . . . . . Reused . | . . . . . . . . Traps Extracted . | . . . . . . . . Installed . | . . . . . . . . Triggered . | . . . . . . . . Machines | -11 -10 -10 -10 -9 -8 -8 -8 ---------- Run | Yrd Mat Min Exi Min Mat Gar Mat Machines Disabled 8 | . . . . 2 . 6 . Max in Single Turn 2 | . . . . 1 . 2 . Garrison Relay 3 | . . . . . . 3 . Machines Repaired . | . . . . . . . . Machines Dismantled . | . . . . . . . . Machines Sabotaged . | . . . . . . . . Overloaded Fab Kills . | . . . . . . . . Hacking | -11 -10 -10 -10 -9 -8 -8 -8 --------- Run | Yrd Mat Min Exi Min Mat Gar Mat Machines Accessed 14 | . 3 . 2 1 4 3 1 Terminals 10 | . 3 . . . 3 3 1 Fabricators . | . . . . . . . . Repair Stations . | . . . . . . . . Recycling Units . | . . . . . . . . Scanalyzers . | . . . . . . . . Garrison Access 1 | . . . . . 1 . . Total Hacks 40 | . 8 . 10 1 10 8 3 Successful 23 | . 3 . 10 1 6 1 2 Failed 17 | . 5 . . . 4 7 1 Catastrophic 3 | . . . . . 2 1 . Database Lockouts . | . . . . . . . . Manual 6 | . . . 1 . 5 . . Terminals 28 | . 8 . . . 9 8 3 Fabricators . | . . . . . . . . Repair Stations . | . . . . . . . . Recycling Units . | . . . . . . . . Scanalyzers . | . . . . . . . . Garrison Access 1 | . . . . . 1 . . Terminal Hacks 21 | . 3 . 10 1 4 1 2 Record 9 | . . . 9 . . . . Robot Analysis 2 | . . . . . 1 . 1 Prototype ID Bank 3 | . 1 . . . 1 . 1 Open Door 1 | . . . . 1 . . . Branch Access Points 1 | . 1 . . . . . . Emergency Access Points 1 | . . . . . . 1 . Locate Traps 1 | . . . . . 1 . . Recall Investigation 1 | . 1 . . . . . . Zone Layout 1 | . . . . . 1 . . Proto ID Catalog 1 | . . . 1 . . . . Fabricator Hacks . | . . . . . . . . Repair Station Hacks . | . . . . . . . . Recycling Unit Hacks . | . . . . . . . . Scanalyzer . | . . . . . . . . Garrison Access Hacks 1 | . . . . . 1 . . Unlock Access 1 | . . . . . 1 . . Unauthorized Hacks 1 | . . . . . 1 . . Terminals 1 | . . . . . 1 . . Botnet 1 | . . . . . 1 . . Fabricators . | . . . . . . . . Repair Stations . | . . . . . . . . Recycling Units . | . . . . . . . . Scanalyzers . | . . . . . . . . Garrison Access . | . . . . . . . . Data Cores Recovered . | . . . . . . . . Used . | . . . . . . . . Hacking Detections 10 | . 3 . . . 3 3 1 Full Trace Events 4 | . 1 . . . . 2 1 Feedback Events 1 | . 1 . . . . . . Corruption 1 | . 1 . . . . . . Feedback Blocked . | . . . . . . . . Robot Schematics Acquired . | . . . . . . . . Robots Built . | . . . . . . . . Authchips . | . . . . . . . . Time . | . . . . . . . . Total Robot Build Rating . | . . . . . . . . Part Schematics Acquired . | . . . . . . . . Parts Built . | . . . . . . . . Authchips . | . . . . . . . . Time . | . . . . . . . . Total Part Build Rating . | . . . . . . . . Parts Repaired . | . . . . . . . . Time . | . . . . . . . . Parts Recycled . | . . . . . . . . Recycled Matter . | . . . . . . . . Retrieved Matter . | . . . . . . . . Retrieved Components . | . . . . . . . . Parts Scanalyzed . | . . . . . . . . Part Schematics Acquired . | . . . . . . . . Parts Damaged . | . . . . . . . . Bothacking | -11 -10 -10 -10 -9 -8 -8 -8 ------------ Run | Yrd Mat Min Exi Min Mat Gar Mat Used RIF Installer . | . . . . . . . . Robots Hacked . | . . . . . . . . Non-combat . | . . . . . . . . Combat . | . . . . . . . . Robot Hacks Applied . | . . . . . . . . Relay Couplers Released 11 | . . . . . . 11 . Machine Destruction 11 | . . . . . . 11 . Fabnet Peak Effective % . | . . . . . . . . Robots Rewired 6 | . . . . . . 6 . Allies Hacked . | . . . . . . . . Hacks Repelled . | . . . . . . . . Allies | -11 -10 -10 -10 -9 -8 -8 -8 -------- Run | Yrd Mat Min Exi Min Mat Gar Mat Total Allies 8 | . . 2 . . . 6 . Largest Group 6 | . . 2 2 . . 6 5 Highest-Rated Group 108 | . . 39 39 . . 108 86 Highest-Rated Ally 31 | . . 31 31 . . 18 18 Initial Warlord ECA Mod 5 | . . . . . . . 5 Total Orders . | . . . . . . . . Ally Attacks 24 | . . . . . . 24 . Total Damage 458 | . . . . . . 458 . Kills 5 | . . . . . . 5 . Allies Corrupted . | . . . . . . . . Allies Melted . | . . . . . . . . Intel | -11 -10 -10 -10 -9 -8 -8 -8 ------- Run | Yrd Mat Min Exi Min Mat Gar Mat Active Infowar (turns) 1571 | . . . . . 517 1054 . Optics 1571 | . . . . . 517 1054 . Robot Analysis Total 2 | . . . . . 1 . 1 Derelict Logs Recovered 4 | . . 1 . 3 . . . Drone Launches . | . . . . . . . . Drone Recoveries . | . . . . . . . . Exploration | -11 -10 -10 -10 -9 -8 -8 -8 ------------- Run | Yrd Mat Min Exi Min Mat Gar Mat Turns Passed 6065 | 6 526 238 334 448 535 3216 762 Spaces Moved 2671 | 6 333 167 294 280 189 1167 235 Core 9 | . . . . . . . 9 Treads 615 | . . . . . . 615 . Legs 714 | 6 66 . . . . 416 226 Wheels 1333 | . 267 167 294 280 189 136 . Hover . | . . . . . . . . Flight . | . . . . . . . . Fastest Speed 110 | 120 110 110 110 110 125 190 120 Average Speed 185 | 120 111 110 110 118 239 232 244 Slowest Speed 330 | 120 120 110 110 125 245 320 330 Overloaded Moves . | . . . . . . . . Propulsion Burnouts . | . . . . . . . . Robots Hopped . | . . . . . . . . Potential Cave-ins . | . . . . . . . . Cave-ins Triggered . | . . . . . . . . Exploration Rate (%) 45 | 2 55 46 60 69 17 92 26 Regions Visited 7 Branch Regions 3 Pre-discovered Areas 2 | . . . . 2 . . . Known Exits Taken 2 | . 1 . . . 1 . . Unknown Exits Taken 4 | 1 . 1 1 1 . . . Scrap Searched 2 | . . 1 . 1 . . . Spaces Dug 7 | . . . . . . 5 2 Terrain Destroyed 131 | . . . . 31 . 91 9 Melee 7 | . . . . . . 5 2 Projectile 7 | . . . . . . . 7 AOE 117 | . . . . 31 . 86 . Terrain Rammed . | . . . . . . . . Walls Destroyed . | . . . . . . . . Machines Disabled . | . . . . . . . . Actions | -11 -10 -10 -10 -9 -8 -8 -8 --------- Run | Yrd Mat Min Exi Min Mat Gar Mat Total 3396 | 5 411 207 307 347 247 1528 344 Wait 220 | . 21 33 . 19 21 104 22 Move 2664 | 5 332 166 293 279 188 1166 235 Hop . | . . . . . . . . Pick Up 68 | . 11 . 6 7 8 26 10 Fast Attach 6 | . . . . . . . 6 Attach 39 | . 4 . . 6 6 15 8 Detach 13 | . 2 . 2 . 2 4 3 Swap 40 | . 1 . 1 7 2 21 8 Drop 40 | . 2 . 5 2 3 22 6 Fire 194 | . 38 7 . 26 17 76 30 Melee 33 | . . . . 1 . 18 14 Ram 1 | . . 1 . . . . . Kick 2 | . . . . . . . 2 Crush . | . . . . . . . . Escape Stasis 28 | . . . . . . 28 . Rewire 48 | . . . . . . 48 . Trap . | . . . . . . . . Miscellaneous . | . . . . . . . . Route ------- -11/Scrapyard -10/Materials -10/Mines (discovered 2 exits: [*Mat] / *Exi) -10/Exiles (discovered 2 exits: *Min x2) -9/Mines -8/Materials (discovered 2 exits: Fac / Gar) -8/Garrison (discovered 3 exits: *Mat x3) -8/Materials History --------- Turn | Location | Event 1 | -11/Scrapyard | Discovered new exit (range 1) 7 | -11/Scrapyard | Entered Materials 138 | -10/Materials | Identified exit to Mines 314 | -10/Materials | Build established: Mutant 533 | -10/Materials | Entered Mines 533 | -10/Mines | Discovered new exit (range 10) 541 | -10/Mines | Met a Derelict bent on vengeance 757 | -10/Mines | Deemed a non-threat by the Exiles lab entrance 757 | -10/Mines | Discovered new exit (range 5) 771 | -10/Mines | Entered Exiles 771 | -10/Exiles | Accompanied by 2 allies 787 | -10/Exiles | Discovered new exit (range 15) 801 | -10/Exiles | Led the pair of lost Derelicts to a safe place 803 | -10/Exiles | Met 8R-AWN 820 | -10/Exiles | Met EX-HEX 853 | -10/Exiles | Met EX-BIN 876 | -10/Exiles | Aligned with FarCom system 877 | -10/Exiles | Given EX-Vault access code 903 | -10/Exiles | Opened EX-Vault 909 | -10/Exiles | Found Prototype Slashing Weapon 911 | -10/Exiles | Identified Longsword +1 920 | -10/Exiles | Found Deploy-a-Sentry 930 | -10/Exiles | Found Army-in-a-Box 956 | -10/Exiles | Exiles lab attacked by MAIN.C 1093 | -10/Exiles | Discovered new exit (range 12) 1105 | -10/Exiles | Left Exiles lab with Longsword +1 1105 | -10/Exiles | Entered Mines 1163 | -9/Mines | Lost 3 parts (1n1u1w) 1181 | -9/Mines | Received a Rocket Launcher from a helpful Derelict 1186 | -9/Mines | Learned location of Zion (-6) 1275 | -9/Mines | Met a Derelict shopkeep closing up shop 1291 | -9/Mines | Found Powered Armor 1394 | -9/Mines | Learned location of 1 exit from Materials 1461 | -9/Mines | Assembled infested the area 1531 | -9/Mines | Destroyed 7 combat bots 1536 | -9/Mines | Discovered new exit (range 14) 1553 | -9/Mines | Entered Materials 1553 | -8/Materials | Evolved 4 slots: Utility x4 1554 | -8/Materials | Identified exit to Factory 1878 | -8/Materials | Build established: Hauler-Mutant 1997 | -8/Materials | Met 7R-MNS 2069 | -8/Materials | Identified exit to Garrison 2088 | -8/Materials | Entered Garrison 2352 | -8/Garrison | Triggered checkpoint 2460 | -8/Garrison | Triggered checkpoint 2763 | -8/Garrison | Build established: Mutant 2912 | -8/Garrison | Triggered checkpoint 2938 | -8/Garrison | Triggered checkpoint 2995 | -8/Garrison | Triggered checkpoint 3022 | -8/Garrison | Destroyed 11 combat bots 3407 | -8/Garrison | Discovered new exit (range 13) 3472 | -8/Garrison | Triggered checkpoint 3559 | -8/Garrison | Garrison Relay disabled 3628 | -8/Garrison | Triggered checkpoint 4051 | -8/Garrison | Discovered new exit (range 11) 4205 | -8/Garrison | Triggered checkpoint 4239 | -8/Garrison | Garrison Relay disabled 4334 | -8/Garrison | Triggered checkpoint 4432 | -8/Garrison | Triggered checkpoint 4512 | -8/Garrison | Garrison Relay disabled 4620 | -8/Garrison | Triggered checkpoint 4643 | -8/Garrison | Triggered checkpoint 4879 | -8/Garrison | Build established: Commander-Mutant 4922 | -8/Garrison | Discovered new exit (range 15) 5304 | -8/Garrison | Entered Materials 5304 | -8/Materials | Accompanied by 5 allies 5590 | -8/Materials | Lost 3 allies 5704 | -8/Materials | First assault squad dispatched 5927 | -8/Materials | Core integrity fell below 50% 5998 | -8/Materials | Lost 7 parts (1p2n2u2w) 6001 | -8/Materials | Core integrity fell below 20% 6066 | -8/Materials | Destroyed by X-62 Marksman with Pulse Rifle Last Messages --------------- 06031_ Slug penetrates Wall. 06032_ Penetrated by Slug. 06032_ Imp. Actuator Array destroyed. 06032_ Minigun destroyed. 06034_ Critical hit (Destroy). 06034_ Nuclear Core destroyed. 06036_ Acquired 100 matter. 06043_ Acquired 60 matter. 06045_ H-55 Commando misfires. 06045_ Slug penetrates Wall. 06046_ Acquired Adv. Beam Cannon. 06046_ Carbon-fiber Leg destroyed. 06047_ Slug penetrates Y-45 Defender. 06047_ Y-45 Defender suffers critical hit (Destroy). 06047_ Y-45 Defender destroyed. 06051_ K-01 Serf collects debris. 06059_ Penetrated by Slug. 06059_ K-01 Serf collects debris. 06063_ Slug penetrates Wall. 06066_ K-01 Serf collects debris. Map ----- +----------------------------------------------------+ | | | | | | | | | | | | | | | | | | | | | | | | | | | | | | | | | | | | | | | | | | | | | | | ????????????????????????####;##########??????????? | | ????????????????????????# x #??????????? | | ????????????????????????#@ "" " #??????????? | | ?????????????????????Y?#;"" """" % ! #??????????? | | ???????????????????????##"Y " " !#??????????? | | ????????????????????????#"" h k! #######????? | | ????????????????????????# r%H!%* # #????? | | ????????????????????????######;;####### #????? | | ?????????g???????????????????# % #????? | | ?????????????????????????????# ###### #????? | | ?????????????????????????????# #????# #????? | | ?????????????????????????????# #????### ###????? | | ?????????????????????????????# #??????# ######## | | ?????????????????????????????# #??????# | | ????????????????????????????## #???####"######## | | ???????????????????????###### %???# #???? | | ??????????????????????? ???# ] #???? | | ???????????????????????? ???# #???? | | ?????????????????????????? #??# *! #???? | | ?????????????????????????w?## #### =%= #???? | | ????????????????????????????##% ## ######???? | | ?????????????????????????????# ! #??????? | | ?????????????????????????????#% #?????## | | ?????????????????????????????# # #?????# | | ?????????????????????????????# # #????# | | ?????????????????????????????# # # #????# | | ????????????????????????????## ##*%% #????# | +----------------------------------------------------+ Best States ------------- Heat Dissipation 45 Energy Generation 18 Energy Capacity 290 Matter Stores 300 Matter Capacity 300 Sight Range 18 Terrain Scan Density 10 Armor Coverage 550 Evasion (%) 55 Targeting Accuracy 16 Melee Accuracy 5 Core Analysis 9 Recoil Reduction 2 Energy Filtering 30 Item Schematics ----------------- None Robot Schematics ------------------ None Fabricated ------------ Nothing Repaired ---------- Nothing Alien Tech Used ----------------- None Achievements -------------- None Challenges ------------ None Game ------ Seed GodPitchforkDetonator Manual? 0 Play Time 00:40:37 Cumulative 135.3 hours Start 2025.09.11 @ 23:21:18 End 2025.09.12 @ 00:07:55 Sessions 1 Manual Loads 0 Difficulty Rogue Special Mode None Game No. 162 Rogue 147 Adventurer 15 Explorer 0 Win Type - Total 6 Types 3/0/2/0/0/0/1/0/0/0 Lore% 42 Gallery% 66 Achievement% 61 Wizard Run 0 Options --------- Layout 0 ASCII 0 Keyboard 0 Movement Mouse Keybinds 0 Fullscreen 2 Font 36/Smallcaps Map View 76x50 Zoom Use 0% Tactical HUD 1 Map Filters NONE Filters NONE Steam 1 RUN: 2c06b792-74bd-4e88-b297-a953259a1e42